bitfinex/quotes_BTCUSD_20250513
["timestamp","ask_amount","ask_price","bid_price","bid_amount"]
[1747144365167,0.22497845,103660.0,103650.0,0.53865143]
[1747144365338,0.22497845,103660.0,103650.0,0.54829919]
[1747144365656,0.22497845,103660.0,103650.0,0.53865143]
[1747144366235,0.00204,103660.0,103650.0,1.23395299]
[1747144366399,0.040818,103660.0,103650.0,1.27230019]
[1747144366652,0.00204,103660.0,103650.0,1.58532959]
[1747144366842,0.00204,103660.0,103650.0,2.79401846]
[1747144367049,0.26077852,103700.0,103680.0,0.56179528]
[1747144367050,0.02912559,103690.0,103680.0,0.56179528]
[1747144367275,0.00983892,103690.0,103680.0,1.23380832]
[1747144367414,0.02128314,103710.0,103700.0,0.01928592]
[1747144367610,0.23341263,103710.0,103700.0,0.53851365]
[1747144367815,0.24452949,103710.0,103700.0,0.53851375]
[1747144368034,0.24452949,103710.0,103700.0,0.56643847]
[1747144368199,0.24467495,103710.0,103700.0,0.56643847]
[1747144368405,0.24467495,103710.0,103700.0,0.57608157]
[1747144368609,0.23503306,103710.0,103700.0,0.57608157]
[1747144368837,0.22539089,103710.0,103700.0,0.55679527]
[1747144369098,0.25309089,103710.0,103700.0,0.02792472]
[1747144369310,0.01948193,103700.0,103690.0,1.12833952]
[1747144369517,0.02912485,103700.0,103690.0,1.12833952]
[1747144369726,0.22198888,103700.0,103690.0,1.12833952]
[1747144370136,0.26905024,103700.0,103690.0,0.53288263]
[1747144370370,0.26905024,103700.0,103690.0,0.88817712]
[1747144370571,0.27105024,103700.0,103690.0,0.86888915]
[1747144370760,0.26140723,103700.0,103690.0,0.67600652]
[1747144370961,0.26140723,103700.0,103690.0,0.7049843]
[1747144371272,0.26140723,103700.0,103690.0,0.89786693]
[1747144371619,0.26140723,103700.0,103690.0,0.56186041]
[1747144371788,0.26140723,103700.0,103690.0,0.57150454]
[1747144372174,0.26140723,103700.0,103690.0,0.57154454]
[1747144373626,0.26140723,103700.0,103690.0,0.36901778]
[1747144374730,0.26140723,103700.0,103690.0,0.56190041]
[1747144375084,0.26140723,103700.0,103690.0,0.89790693]
[1747144375449,0.26140723,103700.0,103690.0,0.56190041]
[1747144375663,0.25176403,103700.0,103690.0,0.36901778]
[1747144376720,0.25176403,103700.0,103690.0,0.56190041]
[1747144376927,0.26140704,103700.0,103690.0,0.91719509]
[1747144377133,0.26144704,103700.0,103690.0,0.93648288]
[1747144378156,0.26144704,103700.0,103690.0,0.60047636]
[1747144378330,0.23354704,103700.0,103690.0,0.92683903]
[1747144379311,0.23354704,103700.0,103690.0,0.59648288]
[1747144380477,0.25350403,103700.0,103690.0,0.23154454]
[1747144380710,0.25350403,103700.0,103690.0,0.23154435]
[1747144381167,0.22390403,103700.0,103690.0,0.23154435]
[1747144381395,0.01168255,103700.0,103690.0,0.93648195]
[1747144381592,0.23347552,103700.0,103690.0,0.93648213]
[1747144381758,0.04061149,103700.0,103690.0,0.9461257]
[1747144381981,0.03096829,103700.0,103690.0,0.94612524]
[1747144382367,4e-05,103700.0,103690.0,1.18970524]
[1747144382577,0.00987892,103700.0,103690.0,1.34391291]
[1747144382847,0.01087892,103700.0,103690.0,1.34391291]
[1747144384327,0.00104,103700.0,103690.0,1.34391291]
[1747144384536,0.00104,103700.0,103690.0,2.98312991]
[1747144384740,0.00104,103700.0,103690.0,3.33367728]
[1747144384905,0.00104,103700.0,103690.0,2.99767076]
[1747144385111,0.01068236,103700.0,103690.0,1.42765034]
[1747144385317,0.02032481,103700.0,103690.0,1.80775628]
[1747144385519,0.02896754,103700.0,103690.0,1.46775628]
[1747144385732,0.03861,103700.0,103690.0,1.46775628]
[1747144385949,0.03861,103700.0,103690.0,1.46875628]
[1747144386156,0.04825282,103700.0,103690.0,1.80875628]
[1747144386377,0.03861,103700.0,103690.0,1.80975628]
[1747144386831,0.04825282,103700.0,103690.0,1.47374976]
[1747144387047,0.04825282,103700.0,103690.0,1.80975628]
[1747144387250,0.03861,103700.0,103690.0,1.80975628]
[1747144387542,0.04825282,103700.0,103690.0,1.80975628]
[1747144388218,0.04825347,103700.0,103690.0,0.89990693]
[1747144388435,0.28274392,103700.0,103690.0,0.57354435]
[1747144388653,0.28033306,103700.0,103690.0,0.57354435]
[1747144388856,0.28033306,103700.0,103690.0,0.37101778]
[1747144389085,0.27069024,103700.0,103690.0,0.58218839]
[1747144389437,0.27069024,103700.0,103690.0,0.92683866]
[1747144389671,0.27169024,103700.0,103690.0,0.92683866]
[1747144390095,0.27169024,103700.0,103690.0,0.59083214]
[1747144390321,0.07882574,103700.0,103690.0,0.59083214]
[1747144390540,0.02052128,103700.0,103690.0,0.93648214]
[1747144390751,0.01087892,103700.0,103690.0,0.60047562]
[1747144390968,0.0301641,103700.0,103690.0,0.93648214]
[1747144391387,0.02052137,103700.0,103690.0,0.93648214]
[1747144391651,0.0301641,103700.0,103690.0,0.93648214]
[1747144391836,0.03016401,103700.0,103690.0,0.93648214]
[1747144392036,0.02052137,103700.0,103690.0,0.59648214]
[1747144392308,0.0301641,103700.0,103690.0,0.59648214]
[1747144392521,0.03016401,103700.0,103690.0,0.93648214]
[1747144393210,0.01087892,103700.0,103690.0,1.24863154]
[1747144393414,0.01087892,103700.0,103690.0,1.27893154]
[1747144394358,0.01087892,103700.0,103690.0,1.27993154]
[1747144394583,0.00987892,103700.0,103690.0,1.27993154]
[1747144394809,0.00987892,103700.0,103690.0,1.28093154]
[1747144395515,0.2609716,103700.0,103690.0,1.00330454]
[1747144395746,0.27061471,103700.0,103690.0,1.03223598]
[1747144395977,0.27061471,103700.0,103690.0,1.37788607]
[1747144396611,0.07775068,103700.0,103690.0,1.37788542]
[1747144397072,4e-05,103700.0,103690.0,1.47519482]
[1747144397344,4e-05,103700.0,103690.0,1.50559482]
[1747144397538,4e-05,103700.0,103690.0,1.52889482]
[1747144398263,4e-05,103700.0,103690.0,2.75376582]
[1747144398723,4e-05,103700.0,103690.0,2.76830667]
[1747144400336,4e-05,103700.0,103690.0,2.70675067]
[1747144400798,0.02896792,103700.0,103690.0,1.19340282]
[1747144401042,0.00987892,103700.0,103690.0,1.47507482]
[1747144401278,0.02916383,103700.0,103690.0,1.47507482]
[1747144401521,0.02916392,103700.0,103690.0,1.47507482]
[1747144401753,0.01952128,103700.0,103690.0,1.47507482]
[1747144401979,0.00987892,103700.0,103690.0,1.47507482]
[1747144402202,0.00987892,103700.0,103690.0,2.04957282]
[1747144402424,0.00987892,103700.0,103690.0,2.02880882]
[1747144402646,0.01952128,103700.0,103690.0,2.02880882]
[1747144402870,0.01952128,103700.0,103690.0,1.98156282]
[1747144403142,0.00987892,103700.0,103690.0,1.98156282]
[1747144403371,0.00987892,103700.0,103690.0,1.68963882]
[1747144403574,0.04992137,103700.0,103690.0,1.47507482]
[1747144403752,0.04027892,103700.0,103690.0,1.47507482]
[1747144403996,0.04992128,103700.0,103690.0,1.47507482]
[1747144404430,0.08976383,103700.0,103690.0,1.26039482]
[1747144404636,0.10904938,103700.0,103690.0,1.16308542]
[1747144404844,0.09940656,103700.0,103690.0,1.16308542]
[1747144405056,0.11869258,103700.0,103690.0,1.16308542]
[1747144405273,0.30415847,103700.0,103690.0,0.24597778]
[1747144405495,0.07992602,103700.0,103690.0,0.45814811]
[1747144405715,0.07992602,103700.0,103690.0,0.47743544]
[1747144405898,0.28243325,103700.0,103690.0,0.46779205]
[1747144406110,0.07992602,103700.0,103690.0,0.47743553]
[1747144406319,0.07992556,103700.0,103690.0,0.81344205]
[1747144406882,0.04008236,103700.0,103690.0,0.59848205]
[1747144407087,0.04027892,103700.0,103690.0,0.59848205]
[1747144407322,0.00987892,103700.0,103690.0,0.69579145]
[1747144407542,0.00987892,103700.0,103690.0,0.69479145]
[1747144407762,0.00987892,103700.0,103690.0,0.69379145]
[1747144407984,0.01087892,103700.0,103690.0,0.69379145]
[1747144408230,0.00987892,103700.0,103690.0,0.69379145]
[1747144408662,0.00987892,103700.0,103690.0,0.69579145]
[1747144409257,0.06777892,103700.0,103690.0,0.69579145]
[1747144410805,0.06777892,103700.0,103690.0,0.68614797]
[1747144411010,0.06777892,103700.0,103690.0,1.12519145]
[1747144411197,0.06777892,103700.0,103690.0,1.02788205]
[1747144411405,0.07722481,103700.0,103690.0,1.02788205]
[1747144411629,0.06758255,103700.0,103690.0,1.02788205]
[1747144411844,0.05794,103700.0,103690.0,1.02788205]
[1747144412070,0.05794,103700.0,103690.0,1.02784205]
[1747144413467,0.05794,103700.0,103690.0,0.37101778]
[1747144413468,0.29731134,103700.0,103690.0,0.37101778]
[1747144413688,0.11409041,103700.0,103690.0,0.56390041]
[1747144413929,0.11650133,103700.0,103690.0,0.57354444]
[1747144414189,0.10685823,103700.0,103690.0,0.90955096]
[1747144414425,0.10685823,103700.0,103690.0,0.9181949]
[1747144414672,0.08927986,103700.0,103690.0,0.58218838]
[1747144414809,0.09027902,103700.0,103690.0,0.58118857]
[1747144415052,0.0806361,103700.0,103690.0,0.59083251]
[1747144415251,0.05894,103700.0,103690.0,0.94612654]
[1747144415451,0.06858245,103700.0,103690.0,0.93648241]
[1747144415849,0.06858245,103700.0,103690.0,0.92683875]
[1747144416049,0.08063592,103700.0,103690.0,0.9171949]
[1747144416264,0.08063592,103700.0,103690.0,0.92683875]
[1747144416265,0.09027865,103700.0,103690.0,0.92683875]
[1747144416692,0.078225,103700.0,103690.0,0.9364825]
[1747144416912,0.11952861,103700.0,103690.0,0.57154444]
[1747144417124,0.11952861,103700.0,103690.0,0.59083223]
[1747144417347,0.12917143,103700.0,103690.0,0.57154444]
[1747144417562,0.12917143,103700.0,103690.0,0.56190041]
[1747144417774,0.27350107,103700.0,103690.0,0.56190041]
[1747144418020,0.27109015,103700.0,103690.0,0.56190041]
[1747144418415,0.26144723,103700.0,103690.0,0.56190041]
[1747144418668,0.26144723,103700.0,103690.0,0.36901778]
[1747144418894,0.35875663,103700.0,103690.0,4e-05]
[1747144419626,0.44773209,103700.0,103690.0,4e-05]
[1747144420068,0.44773209,103700.0,103690.0,0.19292263]
[1747144421168,0.35875663,103700.0,103690.0,0.19292263]
[1747144422726,0.35875663,103700.0,103690.0,4e-05]
[1747144422912,0.35875663,103700.0,103690.0,0.19292263]
[1747144423512,0.35875663,103700.0,103690.0,0.19260472]
[1747144423665,0.35875663,103700.0,103690.0,0.19264472]
[1747144424743,0.44773209,103700.0,103690.0,0.19292263]
[1747144424938,0.44773209,103700.0,103690.0,4e-05]
[1747144425140,0.44773209,103700.0,103690.0,0.19292263]
[1747144425516,0.35875663,103700.0,103690.0,0.19292263]
[1747144429832,0.07822481,103700.0,103690.0,0.54821731]
[1747144430070,0.09751046,103700.0,103690.0,0.55786125]
[1747144430319,0.03034,103700.0,103690.0,0.91714848]
[1747144430552,0.03998245,103700.0,103690.0,0.91714848]
[1747144430789,0.03998245,103700.0,103690.0,0.907505]
[1747144430790,0.04962518,103700.0,103690.0,0.907505]
[1747144431032,0.04962509,103700.0,103690.0,0.91714792]
[1747144431308,0.049625,103700.0,103690.0,0.91714792]
[1747144431543,0.05926764,103700.0,103690.0,0.91714792]
[1747144431791,0.03034,103700.0,103690.0,0.91714792]
[1747144432036,0.00104,103700.0,103690.0,1.79387492]
[1747144432305,0.01087892,103700.0,103690.0,1.91668432]
[1747144432810,0.00104,103700.0,103690.0,1.91668432]
[1747144433076,0.00104,103700.0,103690.0,2.30082996]
[1747144433577,0.00104,103700.0,103690.0,1.96482344]
[1747144434180,4e-05,103700.0,103690.0,1.96482344]
[1747144434378,4e-05,103700.0,103690.0,1.96682344]
[1747144435072,4e-05,103700.0,103690.0,1.75250344]
[1747144435238,4e-05,103700.0,103690.0,2.18074344]
[1747144438541,4e-05,103700.0,103690.0,1.97353544]
[1747144439700,4e-05,103700.0,103690.0,1.99903544]
[1747144439936,4e-05,103700.0,103690.0,1.97353544]
[1747144440336,4e-05,103700.0,103690.0,1.52171644]
[1747144440566,4e-05,103700.0,103690.0,2.69958644]
[1747144440798,4e-05,103700.0,103690.0,2.72508644]
[1747144441268,0.00214546,103710.0,103700.0,0.2217925]
[1747144441491,0.00983892,103730.0,103720.0,0.56174974]
[1747144441713,0.00983892,103730.0,103720.0,1.35935453]
[1747144441922,0.00983892,103730.0,103720.0,1.45666393]
[1747144443261,0.00983892,103730.0,103720.0,1.48536393]
[1747144444193,0.01283892,103730.0,103720.0,1.48536393]
[1747144447019,0.01283892,103730.0,103720.0,1.45666393]
[1747144447446,0.00983892,103730.0,103720.0,1.45666393]
[1747144447643,0.01083892,103730.0,103720.0,1.45666393]
[1747144447845,0.01083892,103730.0,103720.0,1.02866393]
[1747144448126,0.05961872,103730.0,103720.0,1.23254324]
[1747144448258,0.09031862,103730.0,103720.0,1.24218393]
[1747144448666,0.09995884,103730.0,103720.0,1.24218393]
[1747144448921,0.07103892,103730.0,103720.0,1.24218393]
[1747144449139,0.04033892,103730.0,103720.0,1.24218393]
[1747144449529,0.01083892,103730.0,103720.0,1.24218393]
[1747144450179,0.01083892,103730.0,103720.0,2.22231493]
[1747144451570,0.01087892,103730.0,103720.0,2.22231493]
[1747144451780,0.01087892,103730.0,103720.0,1.77005693]
[1747144452151,0.00104,103730.0,103720.0,1.81349778]
[1747144454945,0.00104,103730.0,103720.0,2.20103778]
[1747144455158,0.00104,103730.0,103720.0,2.08835678]
[1747144455378,0.03194,103730.0,103720.0,1.99515778]
[1747144455587,0.06274,103730.0,103720.0,1.88656478]
[1747144455766,0.06274,103730.0,103720.0,2.05505078]
[1747144457338,0.08221849,103730.0,103720.0,2.04050993]
[1747144457545,0.07257892,103730.0,103720.0,1.87202393]
[1747144457769,0.07257892,103730.0,103720.0,2.00006893]
[1747144457973,0.04177892,103730.0,103720.0,2.00006893]
[1747144459450,0.04177892,103730.0,103720.0,1.58362893]
[1747144459671,0.06105852,103730.0,103720.0,1.58362893]
[1747144459878,0.07077892,103730.0,103720.0,1.45558393]
[1747144460093,0.08041849,103730.0,103720.0,1.62170693]
[1747144460372,0.09005834,103730.0,103720.0,1.45558393]
[1747144460592,0.28266826,103730.0,103720.0,0.76566905]
[1747144460828,0.28266826,103730.0,103720.0,1.11131654]
[1747144461243,0.26338847,103730.0,103720.0,0.88956652]
[1747144461457,0.26338847,103730.0,103720.0,1.0920347]
[1747144461654,0.26338847,103730.0,103720.0,1.11131691]
[1747144462597,0.26338847,103730.0,103720.0,1.12095788]
[1747144464043,0.26338847,103730.0,103720.0,0.75602799]
[1747144464328,0.08041849,103730.0,103720.0,2.12500257]
[1747144464569,0.09005815,103730.0,103720.0,1.55702357]
[1747144464818,0.099698,103730.0,103720.0,1.42174557]
[1747144465034,0.10933794,103730.0,103720.0,1.42174557]
[1747144465254,0.10913915,103730.0,103720.0,1.31479548]
[1747144465476,0.09949958,103730.0,103720.0,1.32443617]
[1747144465699,0.09949967,103730.0,103720.0,0.89779617]
[1747144466235,0.08985964,103730.0,103720.0,0.89779617]
[1747144466448,0.08985955,103730.0,103720.0,1.10468317]
[1747144467365,0.08985955,103730.0,103720.0,0.89779617]
[1747144467554,0.09949977,103730.0,103720.0,0.89779617]
[1747144467768,0.09949977,103730.0,103720.0,0.88815548]
[1747144467769,0.29230877,103730.0,103720.0,0.88815548]
[1747144467984,0.08986011,103730.0,103720.0,0.90743704]
[1747144468308,0.28266882,103730.0,103720.0,0.8785147]
[1747144468480,0.28266882,103730.0,103720.0,0.86887336]
[1747144468481,0.26338856,103730.0,103720.0,0.86887336]
[1747144468684,0.26338856,103730.0,103720.0,0.8785146]
[1747144468907,0.26338856,103730.0,103720.0,0.88815575]
[1747144469343,0.26338856,103730.0,103720.0,0.8785147]
[1747144469536,0.26338856,103730.0,103720.0,0.66395795]
[1747144469769,0.26338856,103730.0,103720.0,0.54815594]
[1747144470199,0.08986002,103730.0,103720.0,0.56743806]
[1747144470420,0.30194899,103730.0,103720.0,0.57707884]
[1747144470643,0.09950033,103730.0,103720.0,0.5674375]
[1747144470852,0.29230923,103730.0,103720.0,0.55779672]
[1747144471093,0.29230923,103730.0,103720.0,0.56743759]
[1747144471517,0.29230923,103730.0,103720.0,0.57707837]
[1747144472165,0.0802198,103730.0,103720.0,0.57707782]
[1747144472594,0.08986002,103730.0,103720.0,0.57707782]
[1747144473845,0.29230858,103730.0,103720.0,0.55779635]
[1747144474083,0.29230858,103730.0,103720.0,0.54815548]
[1747144474289,0.28266882,103730.0,103720.0,0.55779635]
[1747144474509,0.28266882,103730.0,103720.0,0.56743704]
[1747144474510,0.08986057,103730.0,103720.0,0.56743704]
[1747144474721,0.28266882,103730.0,103720.0,0.55779654]
[1747144475132,0.28266882,103730.0,103720.0,0.56743732]
[1747144475574,0.28266882,103730.0,103720.0,0.53851451]
[1747144475817,0.27302878,103730.0,103720.0,0.54815585]
[1747144476027,0.27302878,103730.0,103720.0,0.55779691]
[1747144476156,0.27302878,103730.0,103720.0,0.56743788]
[1747144476584,0.27302878,103730.0,103720.0,0.57707875]
[1747144476799,0.27302878,103730.0,103720.0,0.54815594]
[1747144477019,0.26338856,103730.0,103720.0,0.54815594]
[1747144477201,0.07058031,103730.0,103720.0,0.56743797]
[1747144477431,0.28266901,103730.0,103720.0,0.57707875]
[1747144477879,0.28266901,103730.0,103720.0,0.56743797]
[1747144478103,0.28266901,103730.0,103720.0,0.557797]
[1747144478347,0.28266901,103730.0,103720.0,0.56743787]
[1747144478804,0.28266901,103730.0,103720.0,0.57707865]
[1747144479902,0.28266901,103730.0,103720.0,0.91707865]
[1747144480128,0.0802198,103730.0,103720.0,0.91707865]
[1747144480348,0.03194,103730.0,103720.0,0.917078]
[1747144480574,0.05121933,103730.0,103720.0,0.917078]
[1747144480796,0.06085918,103730.0,103720.0,0.917078]
[1747144481020,0.10109922,103730.0,103720.0,0.917078]
[1747144481469,0.09145918,103730.0,103720.0,0.917078]
[1747144481697,0.01087892,103730.0,103720.0,1.0143874]
[1747144481925,0.03015843,103730.0,103720.0,1.0143874]
[1747144482382,0.05905843,103730.0,103720.0,1.0143874]
[1747144483455,0.02051849,103730.0,103720.0,1.0143874]
[1747144483687,0.03015825,103730.0,103720.0,1.0143874]
[1747144483883,0.03015825,103730.0,103720.0,1.4396674]
[1747144484211,0.06135825,103730.0,103720.0,1.4396674]
[1747144484411,0.05171849,103730.0,103720.0,1.4396674]
[1747144484600,0.06135834,103730.0,103720.0,1.4396674]
[1747144486166,0.06135825,103730.0,103720.0,1.4396674]
[1747144486803,0.06135825,103730.0,103720.0,1.8005824]
[1747144487225,0.06135825,103730.0,103720.0,1.5984464]
[1747144487438,0.07099829,103730.0,103720.0,1.5984464]
[1747144487667,0.0709981,103730.0,103720.0,1.5984464]
[1747144487880,0.31228689,103730.0,103720.0,1.14424406]
[1747144488097,0.04207892,103730.0,103720.0,1.42986672]
[1747144488309,0.06135834,103730.0,103720.0,1.74385772]
[1747144488738,0.07099828,103730.0,103720.0,1.74385772]
[1747144488999,0.06135825,103730.0,103720.0,1.74385772]
[1747144489212,0.02051849,103730.0,103720.0,1.74385772]
[1747144489417,0.03015834,103730.0,103720.0,1.74385772]
[1747144489638,0.04097892,103730.0,103720.0,1.74385772]
[1747144489856,0.01087892,103730.0,103720.0,1.77335772]
[1747144490021,0.0885742,103740.0,103730.0,0.56168836]
[1747144490232,0.05965679,103740.0,103730.0,0.89773488]
[1747144490403,0.04937747,103740.0,103730.0,0.89773488]
[1747144490602,0.05901648,103740.0,103730.0,0.89773488]
[1747144490802,0.0301,103740.0,103730.0,0.99504428]
[1747144491018,0.0284,103750.0,103740.0,0.56170699]
[1747144491280,0.02854544,103750.0,103740.0,1.33102943]
[1747144491485,0.02854544,103750.0,103740.0,1.75606943]
[1747144492028,0.03818325,103750.0,103740.0,1.75606943]
[1747144492248,0.02854544,103750.0,103740.0,1.42006291]
[1747144492678,0.03054544,103750.0,103740.0,1.42006291]
[1747144493115,0.03054544,103750.0,103740.0,1.08405639]
[1747144493329,0.04018325,103750.0,103740.0,1.42006291]
[1747144493542,0.03054544,103750.0,103740.0,1.75606943]
[1747144493764,0.00214544,103750.0,103740.0,1.75606943]
[1747144494637,0.05894544,103750.0,103740.0,0.29973845]
[1747144494907,0.04023864,103740.0,103730.0,0.62878037]
[1747144495134,0.08017738,103740.0,103730.0,1.48362611]
[1747144495574,0.0306,103740.0,103730.0,1.45469611]
[1747144496007,0.03094544,103750.0,103740.0,0.22170699]
[1747144496230,0.03064544,103750.0,103740.0,0.89372003]
[1747144496470,0.03064544,103750.0,103740.0,0.99102943]
[1747144496679,0.07108315,103750.0,103740.0,0.65502291]
[1747144496888,0.07108315,103750.0,103740.0,0.93362891]
[1747144497098,0.06144544,103750.0,103740.0,1.19072891]
[1747144497445,0.07108325,103750.0,103740.0,1.19072891]
[1747144497870,0.06144544,103750.0,103740.0,1.19172891]
[1747144498078,0.07108325,103750.0,103740.0,1.19172891]
[1747144498276,0.07308325,103750.0,103740.0,1.19172891]
[1747144498476,0.07108325,103750.0,103740.0,1.19172891]
[1747144498785,0.07108325,103750.0,103740.0,1.19272891]
[1747144499008,0.07108325,103750.0,103740.0,0.85672257]
[1747144499009,0.09999806,103750.0,103740.0,0.85672257]
[1747144499214,0.08072124,103750.0,103740.0,1.44902192]
[1747144499382,0.08072124,103750.0,103740.0,1.64150579]
[1747144499935,0.07108325,103750.0,103740.0,1.64150579]
[1747144500146,0.07112325,103750.0,103740.0,1.64150579]
[1747144500350,0.07112325,103750.0,103740.0,1.64154579]
[1747144500579,0.04996114,103750.0,103740.0,1.97755231]
[1747144500784,0.03068544,103750.0,103740.0,1.97755231]
[1747144502183,0.03068544,103750.0,103740.0,2.04769316]
[1747144502184,0.00018544,103750.0,103740.0,2.04769316]
[1747144503036,0.00018544,103750.0,103740.0,2.02229316]
[1747144503484,0.00018544,103750.0,103740.0,1.53519231]
[1747144503718,0.00018544,103750.0,103740.0,1.97691231]
[1747144504137,0.00018544,103750.0,103740.0,1.53519231]
[1747144504376,0.29150904,103750.0,103740.0,0.66880995]
[1747144504601,0.28187124,103750.0,103740.0,0.02342587]
[1747144504818,0.27223325,103750.0,103740.0,0.21621553]
[1747144505031,0.27223325,103750.0,103740.0,1.01346055]
[1747144505273,0.27223325,103750.0,103740.0,1.35346055]
[1747144505495,0.27223325,103750.0,103740.0,1.35246064]
[1747144505946,0.27323325,103750.0,103740.0,1.34282144]
[1747144506378,0.26359498,103750.0,103740.0,1.35146082]
[1747144506611,0.26359498,103750.0,103740.0,1.00577492]
[1747144506849,0.26359498,103750.0,103740.0,0.36142587]
[1747144507078,0.26359498,103750.0,103740.0,0.46338587]
[1747144507301,0.26359498,103750.0,103740.0,0.80338587]
[1747144507544,0.36090438,103750.0,103740.0,4e-05]
[1747144507782,0.72145175,103750.0,103740.0,4e-05]
[1747144508014,0.27440886,103720.0,103710.0,0.27100632]
[1747144508243,0.37171826,103720.0,103710.0,0.24207132]
[1747144508695,0.37171826,103720.0,103710.0,0.02163132]
[1747144508916,0.26238751,103710.0,103700.0,0.56044]
[1747144509135,0.28169204,103700.0,103690.0,0.60924263]
[1747144509361,0.07918565,103700.0,103690.0,1.07033032]
[1747144509578,0.08882857,103700.0,103690.0,1.42562389]
[1747144509788,0.08882857,103700.0,103690.0,1.44764839]
[1747144510005,0.08882857,103700.0,103690.0,1.43800491]
[1747144510208,0.05994845,103700.0,103690.0,1.78764848]
[1747144510473,8.845e-05,103700.0,103690.0,1.88499788]
[1747144510685,8.845e-05,103700.0,103690.0,2.18148588]
[1747144510907,8.845e-05,103700.0,103690.0,2.13634188]
[1747144511121,0.27304914,103700.0,103690.0,1.0018645]
[1747144511336,0.27063822,103700.0,103690.0,0.67150853]
[1747144511511,0.27063822,103700.0,103690.0,0.63430713]
[1747144511762,0.27063822,103700.0,103690.0,0.64695116]
[1747144511968,0.27063822,103700.0,103690.0,0.98395116]
[1747144512322,0.26099549,103700.0,103690.0,0.98595116]
[1747144512519,0.26099549,103700.0,103690.0,0.7834245]
[1747144512733,0.25135248,103700.0,103690.0,0.00504]
[1747144512936,0.34866188,103700.0,103690.0,0.34504]
[1747144513145,0.34866188,103700.0,103690.0,0.34204]
[1747144513374,0.34866188,103700.0,103690.0,0.34304]
[1747144513791,0.34866188,103700.0,103690.0,0.34204]
[1747144514046,0.43641386,103700.0,103690.0,4e-05]
[1747144515727,0.34866188,103700.0,103690.0,4e-05]
[1747144516580,0.06813146,103700.0,103690.0,0.55786041]
[1747144516798,0.05851674,103700.0,103690.0,0.89786041]
[1747144517005,0.07780229,103700.0,103690.0,0.89786041]
[1747144517215,0.06815919,103700.0,103690.0,0.89786041]
[1747144517437,8.845e-05,103700.0,103690.0,0.89786041]
[1747144517660,8.845e-05,103700.0,103690.0,0.99516981]
[1747144517863,8.845e-05,103700.0,103690.0,1.02476981]
[1747144519007,8.845e-05,103700.0,103690.0,1.84460881]
[1747144519395,8.845e-05,103700.0,103690.0,1.20639081]
[1747144520187,8.845e-05,103700.0,103690.0,0.99716981]
[1747144520371,0.26262369,103700.0,103690.0,0.7747306]
[1747144520506,0.26262369,103700.0,103690.0,1.13002436]
[1747144520507,0.0701309,103700.0,103690.0,1.13002436]
[1747144520722,0.07977363,103700.0,103690.0,1.13002436]
[1747144521087,0.06011655,103700.0,103690.0,1.13002436]
[1747144521306,0.00241084,103700.0,103690.0,1.33103855]
[1747144521555,0.28210688,103740.0,103730.0,0.21207092]
[1747144521802,0.03084848,103740.0,103730.0,0.78791724]
[1747144521999,0.02896524,103740.0,103730.0,0.78791724]
[1747144522201,0.05916515,103740.0,103730.0,0.78791733]
[1747144522409,0.05916515,103740.0,103730.0,0.45191072]
[1747144522410,0.08856515,103740.0,103730.0,0.45191072]
[1747144522626,0.07892604,103740.0,103730.0,0.45191072]
[1747144522842,0.07892604,103740.0,103730.0,0.45191081]
[1747144523079,0.07892604,103740.0,103730.0,0.46155057]
[1747144523478,0.07892604,103740.0,103730.0,0.80155057]
[1747144523689,0.08292604,103740.0,103730.0,0.80155057]
[1747144523905,0.07892604,103740.0,103730.0,1.12791733]
[1747144524119,0.07892604,103740.0,103730.0,1.13755709]
[1747144524333,0.07992604,103740.0,103730.0,1.13755709]
[1747144525620,0.07992595,103740.0,103730.0,1.13755709]
[1747144526208,0.08956487,103740.0,103730.0,1.13755709]
[1747144526412,0.09920407,103740.0,103730.0,1.12791742]
[1747144526616,0.09920407,103740.0,103730.0,1.10863744]
[1747144526818,0.06064848,103740.0,103730.0,1.13755737]
[1747144526980,0.00104848,103740.0,103730.0,2.12689089]
[1747144527186,0.00104848,103740.0,103730.0,2.25320029]
[1747144528104,4.848e-05,103740.0,103730.0,2.27970029]
[1747144528311,4.848e-05,103740.0,103730.0,2.28070029]
[1747144529163,0.00968712,103740.0,103730.0,1.27586377]
[1747144529359,4.848e-05,103740.0,103730.0,1.45562677]
[1747144529961,0.00968712,103740.0,103730.0,1.45362677]
[1747144530163,0.00968712,103740.0,103730.0,1.45662677]
[1747144530164,4.848e-05,103740.0,103730.0,1.45662677]
[1747144530389,4.848e-05,103740.0,103730.0,1.45962677]
[1747144530597,0.00968722,103740.0,103730.0,1.45962677]
[1747144530856,4.848e-05,103740.0,103730.0,1.45962677]
[1747144531075,0.00968712,103740.0,103730.0,1.45962677]
[1747144531494,0.28879382,103740.0,103730.0,1.09455691]
[1747144531696,0.26955644,103740.0,103730.0,1.32315722]
[1747144531869,0.26955644,103740.0,103730.0,1.33279735]
[1747144532106,0.26955644,103740.0,103730.0,1.35207733]
[1747144532305,0.08640626,103740.0,103730.0,1.35207733]
[1747144532517,0.27919592,103740.0,103730.0,1.33279726]
[1747144532705,0.08640552,103740.0,103730.0,1.33279726]
[1747144532982,0.08640552,103740.0,103730.0,1.34243711]
[1747144533195,0.08640552,103740.0,103730.0,1.35207687]
[1747144533404,0.08640552,103740.0,103730.0,1.33279726]
[1747144533795,0.08640552,103740.0,103730.0,1.35207687]
[1747144534218,0.08640552,103740.0,103730.0,1.34243711]
[1747144534552,0.096045,103740.0,103730.0,1.3424372]
[1747144534985,0.096045,103740.0,103730.0,1.35207705]
[1747144535191,0.08640552,103740.0,103730.0,1.35207705]
[1747144535412,0.096045,103740.0,103730.0,1.35207705]
[1747144535625,0.28883466,103740.0,103730.0,1.33279735]
[1747144535821,0.28883466,103740.0,103730.0,1.34243729]
[1747144536742,0.28883466,103740.0,103730.0,1.34243739]
[1747144536915,0.28883466,103740.0,103730.0,1.35207733]
[1747144537320,0.28883466,103740.0,103730.0,1.34243739]
[1747144537523,0.09604473,103740.0,103730.0,1.01607072]
[1747144537924,0.09604463,103740.0,103730.0,1.361717]
[1747144538154,0.27196658,103740.0,103730.0,1.09457477]
[1747144538390,0.26955654,103740.0,103730.0,1.10421508]
[1747144538607,0.25991743,103740.0,103730.0,1.09457477]
[1747144538811,0.25991743,103740.0,103730.0,1.10421518]
[1747144539020,0.25991743,103740.0,103730.0,1.12349571]
[1747144539473,0.25991743,103740.0,103730.0,1.12049571]
[1747144539688,0.25991743,103740.0,103730.0,1.11849571]
[1747144539886,0.25991743,103740.0,103730.0,1.11949571]
[1747144540097,0.25991743,103740.0,103730.0,1.10021518]
[1747144540314,0.25991743,103740.0,103730.0,0.89776652]
[1747144540496,0.25991743,103740.0,103730.0,1.10021518]
[1747144541642,0.25027814,103740.0,103730.0,1.09057477]
[1747144541992,0.25027814,103740.0,103730.0,0.75456825]
[1747144542224,0.25027814,103740.0,103730.0,1.09057477]
[1747144542625,0.25027814,103740.0,103730.0,0.75456825]
[1747144543612,0.25027814,103740.0,103730.0,0.76420866]
[1747144543816,0.25991743,103740.0,103730.0,0.54448866]
[1747144544017,0.25991743,103740.0,103730.0,0.87085477]
[1747144544694,0.25991743,103740.0,103730.0,0.88049518]